lending/lending_fUSD_20251021
["ID","MTS","AMOUNT","RATE_DAILY","PERIOD"]
[391957002,1761029440977,-500.0,0.00034263,14]
[391957003,1761029440987,-2500.0,0.00034264,7]
[391957004,1761029440996,-800.0,0.0003427,2]
[391957005,1761029441006,-700.0,0.0003427,2]
[391957006,1761029441015,-2500.0,0.0003427,7]
[391957007,1761029441024,-2500.0,0.0003427,7]
[391957008,1761029441035,-2500.0,0.00034273,7]
[391957009,1761029441044,-1516.1938862,0.00034273,7]
[391957010,1761029441054,-2500.0,0.00034273,7]
[391957011,1761029441063,-2500.0,0.00034273,7]
[391957012,1761029441073,-150.48961228,0.00034274,2]
[391957013,1761029441082,-5800.0,0.00034274,2]
[391957014,1761029441092,-15781.6641048,0.00034281,3]
[391957015,1761029441101,-15781.6641048,0.00034282,3]
[391957016,1761029441111,-500.0,0.00034289,7]
[391957017,1761029441121,-223.98452205,0.00034289,7]
[391957018,1761029441131,-206.78904159,0.00034289,7]
[391957019,1761029441140,-223.87201045,0.00034289,7]
[391957020,1761029441150,-150.48961228,0.0003429,2]
[391957021,1761029441160,-15781.6641048,0.0003429,3]
[391957022,1761029441169,-980.0,0.00034291,5]
[391957023,1761029441179,-500.0,0.00034291,14]
[391957024,1761029441188,-500.0,0.00034291,14]
[391957025,1761029441198,-173598.305153,0.00034291,3]
[391957026,1761029441208,-23672.4961573,0.00034292,3]
[391957027,1761029441217,-209.53364545,0.00034292,2]
[391957028,1761029441226,-209.53364545,0.00034292,2]
[391957029,1761029441235,-150.64,0.00034292,2]
[391957030,1761029441244,-150.64,0.00034292,2]
[391957031,1761029441254,-150.64,0.00034292,2]
[391957032,1761029441264,-150.64,0.00034292,2]
[391957033,1761029441273,-150.64,0.00034292,2]
[391957034,1761029441283,-150.64,0.00034292,2]
[391957035,1761029441292,-150.64,0.00034292,2]
[391957036,1761029441301,-150.64,0.00034292,2]
[391957037,1761029441311,-150.64,0.00034292,2]
[391957038,1761029441320,-196.757959,0.00034293,7]
[391957039,1761029441330,-197.085652,0.00034293,7]
[391957040,1761029441339,-158.446009,0.00034293,7]
[391957041,1761029441348,-307.40217,0.00034293,7]
[391957042,1761029441357,-178.251762,0.00034293,7]
[391957043,1761029441367,-172.756008,0.00034293,7]
[391957044,1761029441376,-157.050913,0.00034293,7]
[391957045,1761029441386,-1952.72511047,0.00034295,2]
[391957046,1761029441395,-1763473.21544497,0.00034299,6]
[391957047,1761029441404,-152.0,0.000343,120]
[391957048,1761029441413,-250.0,0.000343,14]
[391957049,1761029441423,-250.0,0.000343,14]
[391957050,1761029441432,-250.0,0.000343,14]
[391957051,1761029441441,-250.0,0.000343,14]
[391957052,1761029441450,-250.0,0.000343,14]
[391957053,1761029441459,-250.0,0.000343,14]
[391957054,1761029441468,-250.0,0.000343,14]
[391957055,1761029441477,-250.0,0.000343,14]
[391957056,1761029441487,-250.0,0.000343,14]
[391957057,1761029441496,-250.0,0.000343,14]
[391957058,1761029441507,-250.0,0.000343,14]
[391957059,1761029441516,-250.0,0.000343,14]
[391957060,1761029441525,-250.0,0.000343,14]
[391957061,1761029441534,-250.0,0.000343,14]
[391957062,1761029441543,-250.0,0.000343,14]
[391957063,1761029441677,-250.0,0.000343,14]
[391957064,1761029441687,-250.0,0.000343,14]
[391957065,1761029441696,-250.0,0.000343,14]
[391957066,1761029441705,-250.0,0.000343,14]
[391957067,1761029441719,-250.0,0.000343,14]
[391957068,1761029441728,-250.0,0.000343,14]
[391957069,1761029441737,-250.0,0.000343,14]
[391957070,1761029441746,-250.0,0.000343,14]
[391957071,1761029441758,-250.0,0.000343,14]
[391957072,1761029441770,-250.0,0.000343,14]
[391957073,1761029441781,-250.0,0.000343,14]
[391957074,1761029441791,-9230.8,0.000343,14]
[391957075,1761029441800,-158.446009,0.000343,2]
[391957076,1761029441810,-297.2,0.000343,2]
[391957077,1761029441820,-4745.02,0.000343,2]
[391957078,1761029441830,-178.251762,0.000343,2]
[391957079,1761029441840,-307.40217,0.000343,2]
[391957080,1761029441850,-180.72,0.000343,30]
[391957081,1761029441860,-172.756008,0.000343,2]
[391957082,1761029441870,-157.050913,0.000343,2]
[391957083,1761029441879,-500.0,0.000343,14]
[391957084,1761029441889,-500.0,0.000343,14]
[391957085,1761029441898,-500.0,0.000343,14]
[391957086,1761029441908,-500.0,0.000343,14]
[391957087,1761029441918,-500.0,0.000343,14]
[391957088,1761029441927,-500.0,0.000343,14]
[391957089,1761029441937,-500.0,0.000343,14]
[391957090,1761029441947,-500.0,0.000343,14]
[391957091,1761029441957,-666.0,0.00034301,10]
[391957092,1761029441967,-344050.69157308,0.00034301,7]
[391957093,1761029441977,-2950.67232234,0.00034301,2]
[391957094,1761029441987,-529.52,0.00034301,2]
[391957095,1761029441998,-158.446009,0.00034301,3]
[391957096,1761029442008,-196.757959,0.00034301,3]
[391957097,1761029442018,-197.085652,0.00034301,3]
[391957098,1761029442027,-307.40217,0.00034301,3]
[391957099,1761029442038,-178.251762,0.00034301,3]
[391957100,1761029442047,-172.756008,0.00034301,3]
[391957101,1761029442056,-157.050913,0.00034301,3]
[391957102,1761029442067,-520.75,0.00034301,15]
[391957103,1761029442076,-500.0,0.00034301,14]
[391957104,1761029442086,-500.0,0.00034301,14]
[391957105,1761029442095,-500.0,0.00034301,14]
[391957106,1761029442104,-500.0,0.00034301,14]
[391957107,1761029442115,-500.0,0.00034301,14]
[391957108,1761029442124,-500.0,0.00034301,14]
[391957109,1761029442134,-500.0,0.00034301,14]
[391957110,1761029442143,-500.0,0.00034301,14]
[391957111,1761029442153,-500.0,0.00034301,14]
[391957112,1761029442162,-221.82329289,0.00034301,14]
[391957113,1761029442172,-180.15017906,0.00034301,14]
[391957114,1761029442181,-500.0,0.00034301,14]
[391957115,1761029442190,-500.0,0.00034301,14]
[391957116,1761029442201,-500.0,0.00034301,14]
[391957117,1761029442211,-500.0,0.00034301,14]
[391957118,1761029442221,-1999.0,0.00034301,120]
[391957119,1761029442231,-1012111.13465431,0.00034302,120]
[391957120,1761029442241,-2702467.25467448,0.00034302,120]
[391957121,1761029442250,-105825.1073795,0.00034302,2]
[391957122,1761029442261,-151.0,0.00034302,30]
[391957123,1761029442271,-151.0,0.00034302,30]
[391957124,1761029442281,-151.0,0.00034302,30]
[391957125,1761029442291,-151.0,0.00034302,30]
[391957126,1761029442300,-151.0,0.00034302,30]
[391957127,1761029442310,-151.0,0.00034302,30]
[391957128,1761029442320,-151.0,0.00034302,30]
[391957129,1761029442330,-151.0,0.00034302,30]
[391957130,1761029442339,-151.0,0.00034302,30]
[391957131,1761029442348,-150.48961228,0.00034306,2]
[391957132,1761029442358,-870.0,0.00034315,30]
[391957133,1761029442367,-1000.0,0.0003432,30]
[391957134,1761029442377,-804.0,0.00034321,5]
[391957135,1761029442387,-165.07,0.00034321,15]
[391957136,1761029442397,-163.85,0.00034321,30]
[391957137,1761029442407,-150.48961228,0.00034322,2]
[391957138,1761029442416,-10000.0,0.00034326,30]
[391957139,1761029442426,-10000.0,0.00034326,30]
[391957140,1761029442435,-413.17,0.00034329,2]
[391957141,1761029442445,-184.1625,0.0003433,2]
[391957142,1761029442454,-150.48961228,0.00034338,2]
[391957143,1761029442463,-1952.72511047,0.00034338,2]
[391957144,1761029442473,-150.90669929,0.00034338,30]
[391957145,1761029442482,-10000.0,0.00034339,30]
[391957146,1761029442491,-2309.0,0.00034339,30]
[391957147,1761029442500,-150.64,0.0003434,2]
[391957148,1761029442512,-1000.0,0.0003435,13]
[391957149,1761029442521,-1000.0,0.0003435,13]
[391957150,1761029442530,-1000.0,0.0003435,13]
[391957151,1761029442539,-1000.0,0.0003435,13]
[391957152,1761029442548,-1000.0,0.0003435,13]
[391957153,1761029442558,-1000.0,0.0003435,13]
[391957154,1761029442567,-1000.0,0.0003435,13]
[391957155,1761029442576,-1000.0,0.0003435,13]
[391957156,1761029442585,-7412.44,0.00034351,30]
[391957157,1761029442594,-2042.98,0.00034364,30]
[391957158,1761029442603,-700.0,0.0003437,2]
[391957160,1761029442612,-700.0,0.0003437,2]
[391957162,1761029442621,-700.0,0.0003437,2]
[391957165,1761029442631,-700.0,0.0003437,2]
[391957168,1761029442640,-3546.46,0.00034398,2]
[391957171,1761029442649,-2999.99,0.00034398,2]
[391957174,1761029442659,-150.0,0.000344,60]
[391957177,1761029442668,-209.53364545,0.00034428,2]
[391957180,1761029442677,-150.64,0.00034428,2]
[391957182,1761029442687,-150.64,0.00034428,2]
[391957186,1761029442696,-150.64,0.00034428,2]
[391957189,1761029442708,-106974.78192676,0.00034438,31]
[391957191,1761029442719,-5853.7256417,0.00034438,2]
[391957194,1761029442728,-102719.43517582,0.00034438,2]
[391957197,1761029442737,-3286.74776329,0.00034438,2]
[391957200,1761029442746,-177.87012758,0.00034438,2]
[391957203,1761029442756,-995352.53863274,0.00034438,2]
[391957206,1761029442765,-352.75532295,0.00034438,2]
[391957209,1761029442775,-7373.22897961,0.00034438,2]
[391957211,1761029442784,-550.0,0.00034438,2]
[391957214,1761029442794,-1022.90975911,0.00034438,2]
[391957215,1761029442803,-10852.70251427,0.00034438,2]
[391957216,1761029442812,-172261.73941476,0.00034438,2]
[391957217,1761029442822,-15134.54726972,0.00034438,2]
[391957218,1761029442832,-232.08623001,0.00034438,2]
[391957219,1761029442841,-176.13446706,0.00034438,2]
[391957220,1761029442851,-495.13764249,0.00034438,3]
[391957221,1761029442861,-28447.9946737,0.00034438,2]
[391957222,1761029442871,-6000.0,0.00034438,2]
[391957223,1761029442880,-380.52946624,0.00034438,2]
[391957224,1761029442890,-1489.89013718,0.00034438,2]
[391957225,1761029442899,-1047.57521141,0.00034438,2]
[391957226,1761029442908,-5084.82160094,0.00034438,2]
[391957227,1761029442918,-1193.20147077,0.00034438,2]
[391957228,1761029442928,-1602.2609822,0.00034438,2]
[391957229,1761029442939,-570.87029639,0.00034438,2]
[391957230,1761029442948,-150.0,0.00034438,2]
[391957231,1761029442958,-7872.33973396,0.00034438,2]
[391957232,1761029442968,-1394.15438063,0.00034438,2]
[391957233,1761029442977,-634.89911264,0.00034438,2]
[391957234,1761029442988,-217.65737021,0.00034438,2]
[391957235,1761029442997,-166477.03192456,0.00034438,2]
[391957236,1761029443007,-1081.28030503,0.00034438,2]
[391957237,1761029443017,-2500.0,0.00034438,2]
[391957238,1761029443027,-587.00288139,0.00034438,2]
[391957239,1761029443037,-346.77242305,0.00034438,2]
[391957240,1761029443047,-1100.0,0.00034438,2]
[391957241,1761029443056,-924.62608157,0.00034438,2]
[391957242,1761029443065,-15797.24716181,0.00034438,2]
[391957243,1761029443075,-488.1745212,0.00034438,2]
[391957244,1761029443084,-239.52813151,0.00034438,3]
[391957245,1761029443094,-1609.05633317,0.00034438,2]
[391957246,1761029443103,-21474.47965093,0.00034438,2]
[391957247,1761029443112,-555.82057557,0.00034438,2]
[391957248,1761029443121,-5074.09258205,0.00034438,2]
[391957249,1761029443131,-1025.63616402,0.00034438,2]
[391957250,1761029443140,-369.81389605,0.00034438,2]
[391957251,1761029443149,-2233.64161797,0.00034438,2]
[391957252,1761029443158,-14997.63550277,0.00034438,2]
[391957253,1761029443168,-23365.54444561,0.00034438,2]
[391957254,1761029443177,-1861.88422226,0.00034438,2]
[391957255,1761029443186,-295.58057293,0.00034438,2]
[391957256,1761029443195,-1133.53319932,0.00034438,2]
[391957257,1761029443204,-408.28145109,0.00034438,2]
[391957258,1761029443213,-1503.66560665,0.00034438,2]
[391957259,1761029443222,-24719.35277738,0.00034438,2]
[391957260,1761029443232,-20555.45924421,0.00034438,2]
[391957261,1761029443241,-2473.2400514,0.00034438,2]
[391957262,1761029443251,-205.75571001,0.00034438,2]
[391957263,1761029443261,-875.71284913,0.00034438,2]
[391957264,1761029443271,-286.85093309,0.00034438,2]
[391957265,1761029443281,-5768.52256451,0.00034438,2]
[391957266,1761029443291,-4645.50861451,0.00034438,2]
[391957267,1761029443300,-1714.71272426,0.00034438,2]
[391957268,1761029443310,-228.44623059,0.00034438,2]
[391957269,1761029443319,-157.04933316,0.00034438,2]
[391957270,1761029443329,-156954.42865571,0.00034438,2]
[391957271,1761029443338,-550.0,0.00034438,7]
[391957272,1761029443347,-156.3,0.00034438,2]
[391957273,1761029443357,-385.30027701,0.00034438,7]
[391957274,1761029443366,-2255.13180793,0.00034438,2]
[391957275,1761029443375,-77476.53368742,0.00034438,2]
[391957276,1761029443384,-219.2939001,0.00034438,15]
[391957278,1761029443394,-340658.86868545,0.00034438,2]
[391957279,1761029443403,-219422.74174077,0.00034438,2]
[391957280,1761029443414,-9366.25025909,0.00034438,2]
[391957281,1761029443423,-3469.18827544,0.00034438,2]
[391957282,1761029443433,-13011.27061047,0.00034438,2]
[391957283,1761029443442,-5090.32880819,0.00034438,2]
[391957284,1761029443452,-132206.92064736,0.00034438,2]
[391957285,1761029443461,-50199.71023929,0.00034438,2]
[391957286,1761029443472,-23109.39325292,0.00034438,15]
[391957287,1761029443482,-12971.66155609,0.00034438,20]
[391957288,1761029443491,-1129.64481817,0.00034438,2]
[391957289,1761029443501,-5627.05211982,0.00034438,2]
[391957290,1761029443515,-1542.46325555,0.00034438,2]
[391957291,1761029443524,-1044.61531391,0.00034438,2]
[391957292,1761029443533,-2742.40120599,0.00034438,2]
[391957293,1761029443542,-153.48645621,0.00034438,2]
[391957294,1761029443551,-1701.56988552,0.00034438,2]
[391957295,1761029443559,-252.72816255,0.00034438,2]
[391957296,1761029443569,-169.46151737,0.00034438,2]
[391957297,1761029443578,-500.0,0.00034438,2]
[391957298,1761029443587,-1004.54166797,0.00034438,2]
[391957299,1761029443596,-1279.50278233,0.00034438,2]
[391957300,1761029443605,-247.08105301,0.00034438,2]
[391957301,1761029443614,-1056.57361004,0.00034438,2]
[391957302,1761029443623,-553.12071836,0.00034438,2]
[391957303,1761029443632,-1330.45696942,0.00034438,2]
[391957304,1761029443641,-2227.60704789,0.00034438,2]
[391957305,1761029443650,-23137.91275358,0.00034438,2]
[391957306,1761029443659,-758.25711669,0.00034438,2]
[391957307,1761029443668,-1946.99555372,0.00034438,2]
[391957308,1761029443677,-186.6836318,0.00034438,2]
[391957309,1761029443686,-15113.78350474,0.00034438,3]
[391957310,1761029443695,-643.0,0.00034438,2]
[391957311,1761029443704,-984.42267204,0.00034438,2]
[391957312,1761029443717,-581.21394719,0.00034438,2]
[391957313,1761029443727,-1861.54518438,0.00034438,2]
[391957314,1761029443736,-1221.0,0.00034438,4]
[391957315,1761029443749,-2000.0,0.00034438,4]
[391957316,1761029443759,-6890.93626503,0.00034438,4]
[391957317,1761029443769,-5286.23585447,0.00034438,4]
[391957318,1761029443779,-9111.12466541,0.00034438,120]
[391957319,1761029443789,-293383.40532573,0.00034438,2]
[391957320,1761029443799,-161966.4169416,0.00034438,2]
[391957321,1761029443808,-150.5630563,0.00034438,30]
[391957322,1761029443818,-40000.0,0.00034438,10]
[391957323,1761029443828,-1662.1093501,0.00034438,30]
[391957324,1761029443837,-2000.0,0.00034438,2]
[391957325,1761029443847,-1735.5636251,0.00034438,2]
[391957326,1761029443856,-157.99630521,0.00034438,60]
[391957327,1761029443866,-6215.4,0.00034438,30]
[391957328,1761029443875,-500.0,0.00034438,120]
[391957329,1761029443885,-220.48057222,0.00034438,120]
[391957330,1761029443894,-1091.0,0.00034438,30]
[391957331,1761029443904,-1091.0,0.00034438,30]
[391957332,1761029443913,-1091.0,0.00034438,30]
[391957333,1761029443923,-1091.0,0.00034438,30]
[391957334,1761029443932,-1091.0,0.00034438,30]
[391957335,1761029443942,-152.92998742,0.00034438,120]
[391957336,1761029443951,-1102972.85342357,0.00034438,2]
[391957337,1761029443961,-151.08844353,0.00034438,120]
[391957338,1761029443971,-170.52985725,0.00034438,14]
[391957339,1761029443980,-158.17207291,0.00034438,120]
[391957340,1761029443990,-441.67717139,0.00034438,120]
[391957341,1761029443999,-2280.49677384,0.00034438,30]
[391957342,1761029444010,-161.29622608,0.00034438,120]
[391957343,1761029444019,-465.86711956,0.00034438,120]
[391957344,1761029444059,-165680.11872837,0.00034438,10]
[391957345,1761029444068,-1058905.21177723,0.00034438,2]
[391957346,1761029444077,-2566.24,0.00034438,38]
[391957347,1761029444086,-5015.6221508,0.00034438,120]
[391957348,1761029444096,-2801.73590521,0.00034438,120]
[391957349,1761029444106,-1055.39410735,0.00034438,120]
[391957350,1761029444115,-3100.0,0.00034438,120]
[391957351,1761029444125,-2591.3787904,0.00034438,2]
[391957352,1761029444135,-17231.07906998,0.00034438,2]
[391957353,1761029444144,-160.51202,0.00034438,60]
[391957354,1761029444153,-14314.0,0.00034438,30]
[391957355,1761029444162,-289.97847034,0.00034438,30]
[391957356,1761029444171,-300.0,0.00034438,30]
[391957357,1761029444181,-300.0,0.00034438,30]
[391957358,1761029444190,-300.0,0.00034438,30]
[391957359,1761029444199,-300.0,0.00034438,30]
[391957360,1761029444208,-300.0,0.00034438,30]
[391957361,1761029444217,-300.0,0.00034438,30]
[391957362,1761029444227,-300.0,0.00034438,30]
[391957363,1761029444236,-300.0,0.00034438,30]
[391957364,1761029444244,-300.0,0.00034438,30]
[391957365,1761029444253,-300.0,0.00034438,30]
[391957366,1761029444263,-300.0,0.00034438,30]
[391957367,1761029444272,-13214.76270051,0.00034438,120]
[391957368,1761029444282,-18058.29,0.00034438,30]
[391957369,1761029444291,-3059.49207826,0.00034438,120]
[391957370,1761029444301,-17017.46040046,0.00034438,8]
[391957371,1761029444310,-505.20748319,0.00034438,2]
[391957372,1761029444319,-846.66365614,0.00034438,120]
[391957373,1761029444328,-200.0,0.00034438,120]
[391957374,1761029444337,-150.0,0.00034438,120]
[391957375,1761029444347,-300.0,0.00034438,120]
[391957376,1761029444356,-450.0,0.00034438,120]
[391957377,1761029444365,-600.0,0.00034438,120]
[391957378,1761029444375,-750.0,0.00034438,120]
[391957379,1761029444384,-900.0,0.00034438,120]
[391957380,1761029444393,-1050.0,0.00034438,120]
[391957381,1761029444402,-1200.0,0.00034438,120]
[391957382,1761029444411,-1350.0,0.00034438,120]
[391957383,1761029444421,-1500.0,0.00034438,120]
[391957384,1761029444431,-1650.0,0.00034438,120]
[391957385,1761029444440,-1413.39394474,0.00034438,120]
[391957386,1761029444449,-151.0,0.00034438,30]
[391957387,1761029444458,-151.0,0.00034438,30]
[391957388,1761029444467,-151.0,0.00034438,30]
[391957389,1761029444477,-151.0,0.00034438,30]
[391957390,1761029444486,-151.0,0.00034438,30]
[391957391,1761029444495,-151.0,0.00034438,30]
[391957392,1761029444504,-151.0,0.00034438,30]
[391957393,1761029444513,-151.0,0.00034438,30]
[391957394,1761029444522,-151.0,0.00034438,30]
[391957395,1761029444531,-151.0,0.00034438,30]
[391957396,1761029444541,-151.0,0.00034438,30]
[391957397,1761029444550,-267.821587,0.00034438,30]
[391957398,1761029444559,-152.669026,0.00034438,30]
[391957399,1761029444567,-173.594965,0.00034438,30]
[391957400,1761029444576,-157.095647,0.00034438,30]
[391957401,1761029444585,-151.0,0.00034438,30]
[391957402,1761029444595,-151.0,0.00034438,30]
[391957403,1761029444604,-166.521664,0.00034438,30]
[391957404,1761029444614,-151.0,0.00034438,30]
[391957405,1761029444623,-151.0,0.00034438,30]
[391957406,1761029444633,-363.12841815,0.00034451,2]
[391957407,1761029444642,-700.0,0.0003447,2]
[391957408,1761029444651,-1700.44250875,0.0003449,2]
[391957409,1761029444660,-158.0,0.000345,120]
[391957410,1761029444669,-299.75,0.00034571,3]
[391957411,1761029444679,-307.40217,0.00034676,30]
[391957412,1761029444688,-150.0,0.00034685,2]
[391957413,1761029444697,-363.12841815,0.000347,2]
[391957414,1761029444708,-152.0,0.00034736,5]
[391957415,1761029444718,-885382.85921733,0.000348,120]
[391957416,1761029444760,-20000.0,0.000348,120]
[391957417,1761029444771,-634.53564101,0.000348,120]
[391957418,1761029444943,-4169.31157687,0.00034202,2]
[391957419,1761029444953,-150.0,0.00034755,3]
[391957420,1761029444963,-1451.33683468,0.000348,120]
[391957421,1761029444984,-151.0,0.000348,120]
[391957422,1761029444997,-356.89589779,0.000348,120]
[391957423,1761029445223,-298.970004,0.000348,120]
[391957424,1761029445233,-345.37052734,0.000348,120]
[391957425,1761029445244,-282.9650433,0.000348,120]
[391957426,1761029445255,-1082.74926,0.000348,120]
[391957427,1761029445269,-1949.46026112,0.000348,120]
[391957428,1761029445280,-309.75679222,0.000348,120]
[391957429,1761029445298,-21597.57980119,0.000348,120]
[391957459,1761029445921,-150.0,0.00034437,3]
[391957461,1761029445931,-15049.84092253,0.000348,120]
[391957463,1761029445942,-540.55,0.000348,120]
[391957479,1761029467246,197.65011204,0.0003,120]
[391957536,1761030488888,162.61,0.0001426,2]
[391957537,1761030616708,-1608.92046855,0.00034438,120]
[391957538,1761030616771,-2521.56231469,0.00034438,120]
[391957539,1761030616834,-949.85469661,0.00034438,120]
[391957540,1761030616896,-200.0,0.00034438,120]
[391957541,1761030616961,-11583.0,0.00034438,120]
[391957696,1761030632028,-151.0,0.00015808,2]
[391957697,1761030632038,-151.0,0.0001582,2]
[391957699,1761030632048,-151.0,0.00015828,2]
[391957700,1761030632057,-41.15426274,0.00015863,2]
[391957701,1761030632071,-109.84573726,0.00015863,2]
[391957702,1761030632081,-162.61,0.00016043,2]
[391957703,1761030632091,-227.0,0.00016062,2]
[391957704,1761030632102,-287.53378082,0.00017438,2]
[391957706,1761030632120,-413.7493024,0.00017537,2]
[391957707,1761030632130,-2545.78401765,0.00017569,2]
[391957708,1761030632140,-283.23433147,0.00017659,2]
[391957709,1761030632152,-16.76566853,0.00017659,2]
[391957710,1761030632162,-300.0,0.00017659,2]
[391957711,1761030632171,-1200.0,0.00017659,2]
[391957712,1761030632181,-250.0,0.0001766,2]
[391957714,1761030632191,-2500.0,0.0001766,2]
[391957715,1761030632201,-300.0,0.0001766,2]
[391957716,1761030632210,-300.0,0.0001766,2]
[391957717,1761030632218,-162.61,0.00017825,2]
[391957718,1761030632227,-304.33839512,0.00017993,2]
[391957719,1761030632235,-1578.44562253,0.00018116,2]
[391957720,1761030632243,-150.0,0.00018546,2]
[391957721,1761030632252,-500.0,0.000189,2]
[391957723,1761030632261,-418.78876365,0.000189,2]
[391957724,1761030632270,-500.0,0.000195,2]
[391957725,1761030632279,-500.0,0.000195,2]
[391957726,1761030632289,-500.0,0.000195,2]
[391957727,1761030632299,-162.61,0.00019608,2]
[391957728,1761030632308,-207.9,0.0002014,2]
[391957730,1761030632322,-151.0,0.0002014,2]
[391957731,1761030632332,-151.0,0.0002014,2]
[391957732,1761030632342,-151.0,0.0002014,2]
[391957733,1761030632352,-151.0,0.0002014,2]
[391957734,1761030632361,-163.85502309,0.0002014,2]
[391957735,1761030632371,-207.9,0.00020414,2]
[391957736,1761030632380,-207.9,0.00020688,2]
[391957738,1761030632390,-476.03091061,0.00020749,2]
[391957739,1761030632400,-207.9,0.00020962,2]
[391957740,1761030632410,-207.9,0.00021236,2]
[391957741,1761030632419,-162.61,0.0002139,2]
[391957742,1761030632429,-162.61,0.00023173,2]
[391957743,1761030632439,-374.68305756,0.00023769,2]
[391957748,1761030632644,-500.0,0.00024932,2]
[391957749,1761030632654,-162.61,0.00024955,2]
[391957750,1761030632664,-944.926,0.00025068,2]
[391957752,1761030632673,-3346.0,0.000267,5]
[391957753,1761030632682,-162.61,0.00026738,2]
[391957754,1761030632692,-6659.42,0.00027416,2]
[391957755,1761030632701,-168.0,0.00028171,2]
[391957756,1761030632711,-162.61,0.0002852,2]
[391957757,1761030632720,-200.0,0.00028675,2]
[391957758,1761030632729,-168.0,0.00029068,2]
[391957760,1761030632738,-168.0,0.0002937,2]
[391957761,1761030632748,-500.0,0.00029394,7]
[391957762,1761030632757,-500.0,0.00029394,7]
[391957763,1761030632766,-500.0,0.00029394,7]
[391957764,1761030632775,-1290.97,0.00031523,2]
[391957765,1761030632784,-152.0,0.00031815,3]
[391957767,1761030632794,-314.30419561,0.00031857,2]
[391957768,1761030632804,-5364.88173763,0.00032,120]
[391957769,1761030632813,-151.0,0.00032877,120]
[391957770,1761030632823,-5364.88173763,0.00033,120]
[391957771,1761030632832,-292.13301183,0.00033014,2]
[391957773,1761030632849,-500.0,0.00033111,7]
[391957774,1761030632863,-600.0,0.00033111,7]
[391957775,1761030632873,-500.0,0.00033111,7]
[391957776,1761030632883,-699.45,0.00033295,2]
[391957777,1761030632893,-591.29,0.00033295,35]
[391957779,1761030632903,-1000.0,0.000333,7]
[391957780,1761030632912,-167.34157209,0.0003337,30]
[391957781,1761030632922,-2751.0,0.00033429,120]
[391957782,1761030632932,-1931.87673572,0.00033658,2]
[391957783,1761030632942,-3787.15341697,0.00033868,2]
[391957784,1761030632952,-5364.88173763,0.000339,120]
[391957786,1761030632962,-600.0,0.00033933,7]
[391957787,1761030632972,-14488.72343965,0.00034,4]
[391957788,1761030632982,-500.0,0.00034078,120]
[391957789,1761030632992,-1116.11,0.0003409,2]
[391957790,1761030633002,-271.60123828,0.00034199,7]
[391957791,1761030633012,-500.0,0.00034199,7]
[391957793,1761030633022,-500.0,0.00034199,7]
[391957794,1761030633032,-500.0,0.00034199,7]
[391957795,1761030633042,-500.0,0.00034199,7]
[391957796,1761030633052,-500.0,0.00034199,7]
[391957797,1761030633062,-500.0,0.00034199,7]
[391957798,1761030633072,-500.0,0.00034199,7]
[391957800,1761030633082,-500.0,0.00034199,7]
[391957801,1761030633091,-500.0,0.00034199,7]
[391957802,1761030633102,-500.0,0.00034199,7]
[391957803,1761030633117,-500.0,0.00034199,7]
[391957804,1761030633127,-500.0,0.00034199,7]
[391957805,1761030633137,-500.0,0.00034199,7]
[391957807,1761030633148,-236.55510685,0.00034199,7]
[391957808,1761030633158,-500.0,0.00034199,7]
[391957809,1761030633168,-500.0,0.00034199,7]
[391957810,1761030633178,-500.0,0.00034199,7]
[391957811,1761030633189,-499.99999999,0.00034199,7]
[391957812,1761030633199,-10000.0,0.000342,2]
[391957813,1761030633209,-28084.73238552,0.000342,2]